bitfinex/quotes_ETHUSD_20250925
["timestamp","ask_amount","ask_price","bid_price","bid_amount"]
[1758806945806,4.721,4014.3,4014.2,2.49115639]
[1758806946011,5.3998,4014.3,4014.0,0.002]
[1758806946234,0.6788,4014.2,4014.0,0.002]
[1758806946390,6.36946,4014.1,4014.0,0.002]
[1758806946591,6.141057,4014.1,4014.0,0.002]
[1758806946992,12.812057,4014.1,4014.0,0.002]
[1758806947200,6.141057,4014.1,4014.0,0.002]
[1758806947407,6.045657,4014.1,4014.0,0.002]
[1758806947602,2.076,4014.2,4014.1,2.49121424]
[1758806947899,0.2301,4014.4,4014.2,2.49110773]
[1758806948092,0.2301,4014.9,4014.0,0.002]
[1758806948292,0.124,4014.3,4014.2,2.49115639]
[1758806948516,4.718,4014.3,4014.2,2.49115639]
[1758806948719,5.3968,4014.3,4014.0,0.25133621]
[1758806948932,5.3968,4014.3,4014.2,2.49115639]
[1758806949232,14.015084,4014.3,4014.0,0.002]
[1758806949531,4.254674,4014.2,4014.0,0.002]
[1758806949737,2.961874,4014.1,4014.0,0.002]
[1758806950031,9.861974,4014.1,4014.0,0.002]
[1758806950241,11.268383,4014.1,4014.0,0.002]
[1758806951332,22.21491545,4014.1,4014.0,0.002]
[1758806952037,3.0,4013.9,4012.0,0.002]
[1758806952208,0.124,4012.7,4012.1,2.4924411]
[1758806952534,20.580498,4012.6,4012.3,2.49229325]
[1758806952902,20.580498,4012.6,4012.0,0.126]
[1758806953104,18.811107,4012.6,4012.0,0.002]
[1758806953304,2.49221183,4012.5,4012.0,0.002]
[1758806953515,2.4924603,4012.1,4012.0,0.002]
[1758806953715,7.0834603,4012.1,4012.0,0.002]
[1758806953918,3.124,4012.0,4011.6,0.002]
[1758806954114,11.989451,4011.9,4011.6,0.002]
[1758806954407,3.0,4012.5,4011.7,2.49265109]
[1758806954408,0.2271,4012.3,4011.7,2.49265109]
[1758806954634,0.4458,4012.5,4011.7,2.49265109]
[1758806954635,0.124,4011.8,4011.7,2.49270882]
[1758806954840,4.714,4011.8,4011.7,2.49270882]
[1758806955004,0.124,4012.2,4011.7,2.99166288]
[1758806955210,4.59,4011.9,4011.8,2.49264669]
[1758806955405,0.4458,4012.6,4012.1,2.4924603]
[1758806955618,5.7379,4012.5,4012.3,2.49228423]
[1758806955899,6.145112,4012.4,4012.3,2.49233606]
[1758806956118,0.6729,4012.5,4012.4,2.49227395]
[1758806956318,7.3389,4012.5,4012.4,2.49227395]
[1758806956633,9.797964,4012.5,4012.4,2.49227395]
[1758806956950,12.390964,4012.5,4012.3,2.49232665]
[1758806957152,4.614064,4012.4,4012.3,2.49232665]
[1758806957356,4.614064,4012.4,4012.2,2.49238803]
[1758806957562,6.666,4012.3,4012.2,2.49238803]
[1758806959654,0.6729,4012.9,4011.9,0.002]
[1758806959826,7.46092451,4013.0,4011.9,0.002]
[1758806959827,9.664,4012.8,4012.7,2.49208762]
[1758806960026,15.951004,4012.8,4011.9,0.002]
[1758806960328,3.0,4012.6,4012.4,2.49222329]
[1758806960551,4.587,4012.5,4012.4,2.49222329]
[1758806961061,14.664397,4012.5,4012.4,2.49222329]
[1758806961350,23.565822,4012.5,4012.4,2.49222329]
[1758806961549,24.238722,4012.5,4011.9,0.002]
[1758806961754,10.121162,4012.4,4012.2,2.49234641]
[1758806961958,10.018586,4012.4,4011.9,0.002]
[1758806962262,4.587,4012.5,4012.4,2.49227395]
[1758806962424,4.587,4012.5,4012.1,2.49241649]
[1758806962624,16.071889,4012.4,4012.2,2.49234548]
[1758806962851,15.760531,4012.4,4012.3,2.49233606]
[1758806963039,14.639993,4012.4,4011.9,0.002]
[1758806963233,10.908419,4012.4,4012.3,2.49233606]
[1758806963527,17.453727,4012.4,4011.9,0.002]
[1758806963736,15.501574,4012.3,4011.9,0.002]
[1758806964067,22.833978,4012.2,4011.9,2.49453723]
[1758806964280,8.29336,4012.1,4012.0,2.49252243]
[1758806964439,7.152963,4012.1,4012.0,2.49252243]
[1758806964779,6.66,4012.1,4012.0,2.49252243]
[1758806964961,0.6729,4012.5,4012.0,2.49252243]
[1758806965162,0.4458,4012.5,4012.4,2.49227395]
[1758806965362,7.1058,4012.5,4012.4,2.49227395]
[1758806965542,0.124,4012.4,4012.3,2.49231987]
[1758806965956,9.860611,4012.4,4012.3,2.49231987]
[1758806966444,8.984811,4012.4,4012.3,2.49231987]
[1758806966848,11.655864,4012.4,4012.3,2.49231987]
[1758806967046,9.578864,4012.4,4011.9,0.002]
[1758806967246,6.841637,4012.3,4012.1,2.49244878]
[1758806967468,8.550227,4012.2,4012.0,2.49250462]
[1758806967660,3.629263,4012.1,4012.0,2.49252243]
[1758806968847,4.705,4012.1,4012.0,2.49252243]
[1758806969169,0.1232,4012.1,4012.0,2.99123893]
[1758806969374,3.39094163,4012.9,4012.8,2.49202551]
[1758806969578,10.04794163,4012.9,4012.8,2.49202551]
[1758806969744,17.11794163,4012.9,4012.8,2.49202551]
[1758806970074,7.07,4012.9,4012.8,2.49202551]
[1758806970271,4.579,4012.9,4012.8,2.49202551]
[1758806970643,7.717061,4012.9,4012.8,2.49202551]
[1758806970843,4.579,4012.9,4012.8,2.49202551]
[1758806971245,7.07,4013.0,4012.8,2.49202551]
[1758806971556,0.124,4013.1,4012.8,2.9904383]
[1758806971756,2.077,4013.6,4013.5,2.49159088]
[1758806971970,6.655,4013.6,4013.5,2.49159088]
[1758806972179,0.4458,4014.1,4013.3,2.491669]
[1758806972180,0.4458,4014.1,4014.0,2.49128051]
[1758806972416,10.175777,4014.1,4013.8,2.49135471]
[1758806972684,0.124,4013.5,4013.2,0.02491777]
[1758806972981,0.124,4013.5,4013.4,2.49165296]
[1758806973182,4.701,4013.5,4013.4,2.49165296]
[1758806974777,0.124,4013.5,4013.4,2.49165296]
[1758806975187,1.169,4013.5,4013.4,2.49165296]
[1758806975390,0.124,4013.5,4013.4,2.49165296]
[1758806975746,7.0031,4013.5,4013.4,2.49165296]
[1758806976071,7.4489,4013.5,4013.4,2.49165296]
[1758806976251,24.516435,4013.5,4013.4,2.49165296]
[1758806976446,24.314005,4013.5,4013.4,2.49165296]
[1758806976670,21.530899,4013.5,4013.4,2.49165296]
[1758806976872,14.878899,4013.5,4013.4,2.49165296]
[1758806977070,21.530899,4013.5,4013.4,2.49165296]
[1758806977381,15.600799,4013.5,4013.4,2.49165296]
[1758806977686,19.638549,4013.5,4013.4,2.49165296]
[1758806978050,18.233449,4013.5,4013.4,2.49165296]
[1758806978248,20.310449,4013.5,4013.4,2.49165296]
[1758806978473,19.239649,4013.5,4013.4,2.49165296]
[1758806978702,3.151,4013.5,4013.4,2.49165296]
[1758806979016,9.197,4013.5,4013.4,2.49165296]
[1758806979217,9.88,4013.5,4013.4,2.49165296]
[1758806979401,0.125,4013.5,4013.4,2.49165296]
[1758806979990,6.773,4013.5,4013.4,2.49165296]
[1758806980913,6.772,4013.5,4013.4,2.49165296]
[1758806981303,4.894916,4013.5,4013.4,2.49165296]
[1758806981511,10.34,4013.5,4013.4,2.49165296]
[1758806982322,13.513219,4013.5,4013.4,2.49165296]
[1758806982626,16.630319,4013.5,4012.0,0.002]
[1758806982811,21.906243,4013.4,4013.1,2.49183726]
[1758806983016,10.6301,4013.3,4012.2,0.0068]
[1758806983198,3.574969,4013.2,4013.0,2.49188259]
[1758806983392,4.282569,4013.2,4013.0,2.49188259]
[1758806983592,12.96801,4013.1,4012.1,2.4924603]
[1758806983907,19.462935,4013.0,4012.9,2.49196341]
[1758806984225,20.170535,4013.0,4012.9,2.49196341]
[1758806984395,20.180535,4013.0,4012.9,2.49196341]
[1758806984828,22.516091,4013.0,4012.9,2.49196341]
[1758806985120,16.199994,4012.9,4012.0,0.002]
[1758806985326,3.0,4012.7,4012.0,0.002]
[1758806985624,7.097647,4012.6,4012.0,2.49450232]
[1758806985826,7.097647,4012.6,4012.0,0.002]
[1758806985827,10.308615,4012.5,4012.0,0.002]
[1758806986032,3.0,4012.3,4012.0,0.002]
[1758806986331,8.985,4012.2,4012.0,0.002]
[1758806986551,2.077,4012.2,4012.1,2.4924603]
[1758806986746,9.065,4012.2,4012.1,2.4924603]
[1758806987044,6.642,4012.2,4012.0,0.002]
[1758806987325,7.591,4012.1,4012.0,2.49446128]
[1758806987516,4.565,4012.1,4012.0,2.49446128]
[1758806987730,8.911064,4012.1,4012.0,2.49446128]
[1758806987898,8.436064,4012.1,4012.0,2.49446128]
[1758806988308,4.565,4012.1,4012.0,2.49446128]
[1758806989138,4.8061,4012.1,4012.0,2.49446128]
[1758806989293,0.2411,4012.1,4012.0,2.49446128]
[1758806989496,7.3486,4012.1,4012.0,2.49452243]
[1758806990219,14.418727,4012.1,4012.0,2.49452243]
[1758806990601,18.453682,4012.1,4012.0,2.49452243]
[1758806990811,17.453682,4012.1,4012.0,2.49452243]
[1758806991029,17.453682,4012.1,4012.0,0.002]
[1758806991233,17.096969,4012.1,4012.0,0.002]
[1758806991428,17.096969,4012.1,4012.0,2.49452243]
[1758806991621,15.167596,4012.1,4012.0,2.49452243]
[1758806991825,14.85726,4012.1,4012.0,2.49452243]
[1758806992131,13.835245,4012.1,4012.0,2.49452243]
[1758806992832,8.287007,4012.1,4012.0,0.002]
[1758806993035,8.753507,4012.1,4012.0,2.49452243]
[1758806993606,8.994607,4012.1,4012.0,2.49452243]
[1758806993807,8.287007,4012.1,4012.0,2.49452243]
[1758806994308,4.686,4012.1,4012.0,2.49452243]
[1758806994634,14.438886,4012.1,4012.0,2.49452243]
[1758806994808,13.963886,4012.1,4012.0,2.49452243]
[1758806995348,14.137886,4012.1,4012.0,2.49452243]
[1758806995501,14.845486,4012.1,4012.0,2.49452243]
[1758806995935,14.845486,4012.1,4012.0,0.002]
[1758806996131,13.798888,4012.1,4012.0,2.49452243]
[1758806996438,13.808888,4012.1,4012.0,2.49452243]
[1758806996816,11.739912,4012.1,4012.0,2.49452243]
[1758806997237,13.681477,4012.1,4012.0,2.49452243]
[1758806997405,11.931235,4012.1,4012.0,2.49452243]
[1758806997738,7.901638,4012.1,4012.0,2.49452243]
[1758806998237,5.3928,4012.1,4012.0,2.49452243]
[1758806998425,6.633,4012.1,4012.0,0.50091589]
[1758806998629,6.633,4012.1,4012.0,2.49452243]
[1758806999014,6.633,4012.1,4012.0,0.002]
[1758806999220,6.633,4012.1,4012.0,2.49452243]
[1758806999422,15.231098,4012.1,4012.0,2.49452243]
[1758806999618,15.231098,4012.1,4012.0,0.002]
[1758806999817,22.744524,4012.1,4012.0,0.002]
[1758807000014,20.380685,4012.1,4012.0,2.49452243]
[1758807000209,23.380685,4012.1,4012.0,0.002]
[1758807000409,3.0,4012.0,4011.9,0.002]
[1758807000749,3.0,4012.0,4011.6,0.002]
[1758807000750,2.49270882,4011.7,4011.6,0.002]
[1758807000957,3.124,4011.6,4010.9,0.002]
[1758807001108,2.4933925,4010.6,4010.5,0.002]
[1758807001310,2.4933925,4010.6,4009.7,0.002]
[1758807001311,10.0473925,4010.6,4009.7,0.002]
[1758807001512,2.49371895,4010.1,4009.7,0.002]
[1758807001713,3.0,4009.9,4009.7,0.002]
[1758807001916,3.0,4009.7,4008.4,0.002]
[1758807002153,3.0,4009.7,4007.9,0.002]
[1758807002154,2.49469876,4008.5,4007.9,0.002]
[1758807002335,18.46884063,4008.1,4006.0,0.004]
[1758807002654,36.93350192,4008.4,4005.9,0.006]
[1758807002655,15.46884063,4007.8,4005.9,0.006]
[1758807002871,15.46884063,4007.1,4005.9,0.002]
[1758807003155,3.0,4006.9,4005.9,0.002]
[1758807003467,15.612819,4006.8,4006.7,2.4958195]
[1758807003648,15.612819,4006.8,4005.9,0.002]
[1758807003649,3.0,4006.7,4005.9,0.002]
[1758807003820,3.0,4006.5,4005.9,0.02696317]
[1758807004143,3.0,4006.3,4005.9,0.002]
[1758807004345,27.032859,4006.4,4005.5,0.002]
[1758807004346,3.0,4006.0,4005.5,0.002]
[1758807004573,3.0,4005.8,4005.3,0.002]
[1758807004718,9.26687,4005.7,4005.3,0.002]
[1758807005042,3.0,4005.5,4005.3,0.002]
[1758807005264,9.63,4005.4,4005.3,0.002]
[1758807005424,3.0,4005.4,4005.3,2.49869188]
[1758807005620,3.0,4005.4,4005.3,0.002]
[1758807005814,21.257547,4005.4,4005.3,0.002]
[1758807006155,5.645443,4005.4,4005.3,2.49869188]
[1758807006359,3.00232921,4008.0,4005.3,2.49869188]
[1758807006360,3.0,4006.5,4005.4,2.49662955]
[1758807006658,10.47456,4006.4,4005.5,0.04576567]
[1758807006871,14.010162,4006.3,4005.3,0.50154899]
[1758807007155,7.552,4006.2,4005.9,2.49625638]
[1758807007310,0.12280464,4006.7,4006.5,2.49594409]
[1758807007510,0.12280464,4006.7,4005.3,0.002]
[1758807007511,5.17728,4006.5,4005.3,0.002]
[1758807007735,18.46884063,4006.3,4005.3,0.002]
[1758807007947,3.0,4006.1,4005.3,0.002]
[1758807008111,7.71111757,4006.4,4005.3,0.002]
[1758807008112,3.0,4005.9,4005.3,0.002]
[1758807008318,2.423679,4005.8,4005.3,0.002]
[1758807008526,3.0,4005.6,4005.3,0.002]
[1758807008772,3.0,4005.4,4005.3,0.002]
[1758807008952,7.3531,4005.4,4005.3,0.002]
[1758807009116,3.746267,4005.4,4005.3,0.002]
[1758807009315,12.59919,4005.4,4005.3,0.002]
[1758807009539,5.96819,4005.4,4005.3,0.002]
[1758807009744,23.02876815,4005.4,4005.3,0.002]
[1758807010046,16.46564215,4005.4,4005.3,0.002]
[1758807010247,0.30250192,4006.4,4005.9,2.49626421]
[1758807010448,4.270577,4006.3,4005.3,0.02696691]
[1758807010750,9.36215,4006.2,4005.3,0.28141886]
[1758807010913,3.0,4006.1,4005.3,2.49868756]
[1758807011118,0.1248,4005.6,4005.5,2.49656722]
[1758807011313,2.849458,4005.9,4005.8,2.49638024]
[1758807011546,2.849458,4005.9,4005.3,0.002]
[1758807011547,7.0631,4005.9,4005.3,0.002]
[1758807011752,12.519668,4005.8,4005.3,0.002]
[1758807011954,3.0,4005.6,4005.3,0.002]
[1758807012149,3.0,4005.4,4005.3,0.002]
[1758807012343,6.577213,4005.4,4005.3,0.002]
[1758807013070,7.255413,4005.4,4005.3,0.002]
[1758807013276,7.64704617,4005.4,4005.3,0.002]
[1758807013434,5.02146,4005.4,4005.3,2.49869188]
[1758807013641,8.7551,4005.4,4005.3,2.49867597]
[1758807013969,21.734527,4005.4,4005.3,0.002]
[1758807014272,3.25554,4005.4,4005.3,0.002]
[1758807014477,6.63,4005.4,4005.3,2.49869188]
[1758807014783,3.0,4006.0,4005.3,0.002]
[1758807014947,0.12702512,4006.9,4005.4,0.004]
[1758807015137,6.629,4006.8,4006.3,2.49602571]
[1758807015338,2.08,4006.7,4006.6,2.49588179]
[1758807015568,9.385706,4006.7,4006.5,2.4959322]
[1758807015878,18.751662,4006.6,4005.3,0.002]
[1758807016041,3.0,4006.4,4005.3,0.002]
[1758807016239,0.39152152,4006.7,4005.4,3.31359584]
[1758807016440,0.39152152,4006.7,4006.6,2.49588179]
[1758807016640,0.39152152,4006.7,4005.5,0.35275958]
[1758807016641,8.74952952,4006.7,4005.9,2.49631793]
[1758807016860,8.74952952,4006.7,4006.6,2.49588179]
[1758807016861,0.39152152,4006.7,4006.6,2.49588179]
[1758807017136,6.75552152,4006.7,4006.0,0.0168]
[1758807017378,22.79211,4006.6,4005.5,0.002]
[1758807017654,3.0,4006.4,4005.5,0.002]
[1758807017838,4.412,4006.3,4005.5,0.002]
[1758807018041,4.412,4006.3,4006.1,2.4961933]
[1758807018265,6.628,4006.2,4005.5,0.002]
[1758807018472,2.150091,4006.1,4006.0,2.49625561]
[1758807018670,2.150091,4006.1,4005.5,0.002]
[1758807018671,10.34362,4006.1,4005.5,0.002]
[1758807018873,16.84552,4006.0,4005.6,2.49644899]
[1758807019091,3.445102,4005.9,4005.8,2.49632039]
[1758807019244,3.445102,4005.9,4005.5,0.002]
[1758807019442,2.315959,4005.9,4005.5,0.002]
[1758807019679,0.6782,4005.8,4005.5,0.002]
[1758807019842,3.0,4005.6,4005.5,0.002]
[1758807020041,13.051299,4005.6,4005.5,0.002]
[1758807020245,7.102499,4005.6,4005.5,0.002]
[1758807020439,13.729499,4005.6,4005.5,0.002]
[1758807020742,29.139071,4005.6,4005.5,0.002]
[1758807020978,34.27524596,4005.6,4005.5,0.002]
[1758807021279,31.50853557,4005.6,4005.5,0.002]
[1758807021444,33.72897281,4005.6,4005.5,0.002]
[1758807021644,30.0,4005.5,4005.3,0.002]
[1758807021877,21.414481,4005.4,4005.3,0.002]
[1758807022176,7.647014,4005.4,4005.3,0.002]
[1758807022376,14.274014,4005.4,4005.3,0.002]
[1758807022889,30.950831,4005.4,4005.3,0.002]
[1758807023066,34.03974055,4005.4,4005.3,0.002]
[1758807023591,28.50724247,4005.4,4005.3,0.002]
[1758807023819,28.50724247,4005.4,4004.9,0.002]
[1758807023820,6.2888789,4005.0,4004.9,0.002]
[1758807024087,3.792,4004.6,4003.9,0.002]
[1758807024292,3.0,4004.1,4003.9,0.002]
[1758807024481,37.546,4004.0,4003.9,0.002]
[1758807024788,40.72170249,4004.0,4003.9,0.002]
[1758807024988,31.471068,4004.0,4003.9,0.002]
[1758807025191,49.30570249,4004.0,4003.9,0.002]
[1758807025396,49.30570249,4004.0,4001.4,0.0268]
[1758807025397,2.49800799,4003.2,4001.4,0.0268]
[1758807025569,36.626,4003.1,4001.6,2.49895253]
[1758807025769,36.626,4003.1,4001.6,2.49896006]
[1758807025770,2.49824891,4002.9,4001.6,2.49896006]
[1758807025968,37.47540885,4002.8,4001.6,2.49899931]
[1758807026169,10.2366,4001.6,4000.9,0.004]
[1758807026393,6.626,4001.5,4000.0,0.0228]
[1758807026595,0.80480826,4002.8,3998.5,2.081]
[1758807026596,0.30250192,4001.9,3999.6,0.004]
[1758807026893,6.98998,4001.8,3999.7,0.0228]
[1758807027099,24.32655,4002.2,3999.9,3.0]
[1758807027284,19.795017,4002.1,4000.6,2.49962228]
[1758807027604,5.633923,4000.6,4000.0,0.5526925]
[1758807027808,6.626,4000.5,3999.5,0.004]
[1758807028108,7.26,4000.4,4000.3,2.49981251]
[1758807028280,7.26,4000.4,3999.0,0.0228]
[1758807028482,7.388456,4000.3,3999.1,0.02900562]
[1758807028683,12.249805,4000.2,4000.1,2.4999375]
[1758807028898,11.700413,4000.2,4000.1,2.4999375]
[1758807029094,10.613706,4000.2,3999.3,0.004]
[1758807029274,12.640718,4000.1,3998.9,0.004]
[1758807029478,6.627,4000.0,3999.2,2.50048554]
[1758807029780,5.2232,3999.9,3998.9,2.50067072]
[1758807030000,10.899351,3998.9,3998.0,0.004]
[1758807030312,6.627,3998.8,3998.6,2.50083743]
[1758807030514,1.01078526,3999.9,3998.6,2.50083743]
[1758807030515,6.627,3998.7,3998.6,2.5008753]
[1758807031005,0.27606765,3999.5,3998.6,2.5008753]
[1758807031006,0.27606765,3999.5,3998.6,0.0268]
[1758807031205,5.839535,3999.4,3998.5,0.004]
[1758807031520,18.933555,3999.3,3998.9,2.50067957]
[1758807031673,16.285316,3999.2,3999.0,2.50056823]
[1758807031874,6.507,4000.4,3998.2,0.792]
[1758807031875,4.545,3999.1,3998.6,0.004]
[1758807032094,0.2461,4000.3,3998.6,2.50486748]
[1758807032302,5.49994221,4000.1,3998.2,2.50109063]
[1758807032484,5.49994221,4000.1,3999.2,2.50043963]
[1758807032485,30.6782,4000.0,3999.2,2.50043963]
[1758807032685,2.082,3999.9,3998.5,0.0228]
[1758807032890,6.627,3999.8,3999.0,2.50062515]
[1758807033184,5.082,3999.7,3998.0,0.0268]
[1758807033394,25.212412,3999.7,3998.1,0.792]
[1758807033603,5.457576,3999.6,3999.1,2.50054615]
[1758807033811,0.1248,3999.4,3999.3,2.50043757]
[1758807034012,11.120327,3999.4,3999.3,2.50043757]
[1758807034216,3.39218373,4000.0,3999.6,2.50024048]
[1758807034413,0.39218373,4000.0,3999.9,2.5000625]
[1758807034580,0.4321,4000.9,4000.3,2.49975839]
[1758807034913,0.39212959,4000.0,3999.9,2.5000625]
[1758807035129,0.12241144,4001.6,4000.5,0.792]
[1758807035332,0.3920618,4000.8,4000.6,2.49958001]
[1758807035546,0.2461,4001.8,4000.6,2.49958001]
[1758807035700,0.4321,4002.2,4001.6,2.49899211]
[1758807035901,0.4321,4002.2,4000.7,0.004]
[1758807035902,0.3919978,4001.5,4000.7,0.004]
[1758807036145,9.361892,4001.4,4001.3,2.49912579]
[1758807036295,17.508252,4001.4,4000.7,0.004]
[1758807036500,6.627,4001.4,4001.3,2.49918776]
[1758807036903,0.39198724,4001.6,4001.5,2.49906285]
[1758807037105,0.557631,4002.2,4001.5,2.49906285]
[1758807037299,0.763,4002.1,4001.6,0.02499]
[1758807037641,0.763,4002.0,4001.9,2.49881306]
[1758807037812,3.364165,4002.0,4001.9,2.49881306]
[1758807038001,0.39193794,4002.1,4002.0,2.49875062]
[1758807038326,3.05193794,4002.1,4002.0,2.49875062]
[1758807038871,3.0,4003.2,4001.4,0.004]
[1758807038872,0.12768526,4003.0,4002.2,2.49856439]
[1758807039038,2.49837605,4002.6,4000.8,0.004]
[1758807039200,3.0,4002.4,4001.7,2.49888656]
[1758807039400,21.603347,4002.3,4000.8,0.004]
[1758807039597,15.708195,4002.2,4000.8,2.49947761]
[1758807039831,11.370818,4002.2,4000.8,2.49950009]
[1758807040035,6.626,4002.1,4001.6,2.49899249]
[1758807040235,17.60564584,4002.1,4000.7,0.792]
[1758807040532,9.007847,4002.0,4000.2,2.499875]
[1758807040734,3.24312,4001.9,4000.4,2.49975002]
[1758807040933,0.63805584,4002.1,4000.3,0.0268]
[1758807040934,5.774,4001.8,4000.6,0.792]
[1758807041146,3.784695,4001.7,4000.7,0.792]
[1758807041303,6.626,4001.7,4001.4,2.49907561]
[1758807041503,0.2339,4002.6,4002.1,2.49863987]
[1758807041702,12.608712,4002.5,4002.3,2.49855215]
[1758807042012,9.136875,4002.5,4002.1,2.49868048]
[1758807042212,0.4475,4002.7,4001.2,3.004]
[1758807042213,6.625,4002.4,4001.3,0.81699187]
[1758807042413,3.965931,4002.3,4002.1,2.49867759]
[1758807042637,6.625,4002.2,4002.1,2.49868818]
[1758807042965,9.99018,4002.2,4002.1,2.49868818]
[1758807043272,3.02437,4002.2,4001.6,2.49893829]
[1758807043569,6.625,4002.2,4000.8,0.40868]
[1758807043738,6.625,4002.2,4000.4,3.0]
[1758807043739,15.537121,4002.1,4001.3,2.49912703]
[1758807043927,3.5491,4001.3,4001.2,2.49925022]
[1758807044126,6.625,4001.3,4001.2,2.49925022]
[1758807044322,0.1248,4001.5,4000.8,0.1248]
[1758807044527,0.39196435,4003.3,4001.3,0.1248]
[1758807044777,0.39196435,4003.3,4000.8,0.792]
[1758807044778,1e-08,4003.3,4003.2,3.29000159]
[1758807044939,4.541,4003.9,4003.3,0.792]
[1758807045123,8.504763,4003.8,4003.5,2.49777106]
[1758807045327,4.799533,4003.7,4002.0,0.004]
[1758807045549,3.549819,4003.6,4002.3,2.49856332]
[1758807045759,11.024429,4003.5,4001.9,0.0228]
[1758807045926,10.980473,4003.4,4002.2,2.49862575]
[1758807046133,9.529553,4003.3,4002.1,0.792]
[1758807046453,4.317003,4003.2,4003.0,2.49807272]
[1758807046652,3.724592,4003.1,4002.1,0.792]
[1758807046852,3.724592,4003.1,4001.4,2.50310568]
[1758807046853,3.724592,4003.1,4002.2,0.40827506]
[1758807047161,0.6814,4003.8,4003.4,2.49782699]
[1758807047373,0.12276311,4004.3,4003.4,2.49782699]
[1758807047374,3.0,4003.6,4003.4,2.49782699]
[1758807047544,2.024697,4003.5,4002.5,0.792]
[1758807047746,2.083,4003.9,4002.6,0.05178376]
[1758807048066,0.4475,4005.2,4005.1,2.49681655]
[1758807048370,0.4475,4005.7,4005.6,2.49650489]
[1758807048565,12.354577,4005.7,4005.6,2.49650489]
[1758807048866,3.648144,4005.7,4005.6,2.49650489]
[1758807049069,0.62553665,4006.1,4005.8,2.49634757]
[1758807049271,0.62553665,4006.1,4003.8,2.49757037]
[1758807049272,3.0,4005.9,4003.8,2.49757037]
[1758807049581,3.0,4005.7,4003.9,2.49756487]
[1758807049734,3.0,4005.5,4004.6,2.49711135]
[1758807049931,0.32591328,4005.9,4002.8,0.004]
[1758807049932,10.935095,4004.6,4002.8,0.004]
[1758807050138,3.0,4004.4,4002.8,0.004]
[1758807050344,3.0,4004.2,4003.9,2.49751438]
[1758807050565,3.0,4004.0,4003.9,2.49751438]
[1758807050742,3.6814,4004.2,4004.0,2.49748341]
[1758807050944,3.0,4004.1,4004.0,2.49748341]
[1758807051164,9.621,4004.1,4004.0,2.49748341]
[1758807051379,3.0,4004.0,4003.6,2.49771752]
[1758807051559,0.6814,4003.9,4003.4,2.4978183]
[1758807051759,7.105342,4003.8,4003.6,2.49770844]
[1758807051962,7.074326,4003.7,4002.5,2.49843847]
[1758807052177,0.6814,4003.8,4002.5,2.49843847]
[1758807052178,16.111454,4003.6,4002.6,0.25024385]
[1758807052376,10.69886,4003.5,4003.2,2.49799931]
[1758807052550,3.868071,4003.4,4003.2,2.49799876]
[1758807052752,2.082,4003.3,4003.2,2.49800159]
[1758807052986,5.468071,4003.3,4003.1,2.49805758]
[1758807053191,10.158126,4003.2,4001.3,0.004]
[1758807053374,3.0,4003.0,4001.7,2.49893795]
[1758807053574,6.305228,4002.9,4002.8,2.49822716]
[1758807053780,10.966909,4002.9,4002.8,2.49822716]
[1758807053947,9.172579,4002.9,4002.8,2.49822716]
[1758807054154,6.278546,4002.9,4002.8,2.49822716]
[1758807054381,4.368595,4002.9,4002.8,2.49825122]
[1758807054691,3.0,4002.8,4002.7,2.49831363]
[1758807054994,13.383456,4002.8,4001.8,0.2518938]
[1758807055152,13.383456,4002.8,4002.6,2.49832749]
[1758807055153,2.600514,4002.7,4002.6,2.49832749]
[1758807055349,3.281914,4002.7,4002.4,0.1248]
[1758807055548,3.0,4002.5,4001.9,2.49881306]
[1758807055753,3.0,4002.5,4001.8,0.002]
[1758807055754,3.0,4002.3,4001.8,0.002]
[1758807055996,3.0,4002.1,4001.8,2.50086468]
[1758807056299,3.0,4001.9,4001.8,0.002]
[1758807056453,10.560187,4001.9,4001.8,0.002]
[1758807056785,10.556703,4001.9,4001.8,0.002]
[1758807057151,6.663885,4001.9,4001.8,2.5008755]
[1758807057352,13.407685,4001.9,4001.8,2.5008755]
[1758807057553,14.159659,4001.9,4001.8,2.5008755]
[1758807057758,4.6618,4001.9,4001.8,2.5008755]
[1758807057963,9.7438,4001.9,4001.8,2.5008755]
[1758807058175,5.082,4001.9,4001.8,2.5008755]
[1758807058405,9.619,4001.9,4001.8,2.6256755]
[1758807058607,11.670532,4001.9,4001.8,2.6256755]
[1758807058898,11.670532,4001.9,4001.8,2.5008755]
[1758807058899,3.0,4001.9,4001.8,2.5008755]
[1758807059197,6.618,4001.9,4001.8,2.6256755]
[1758807059569,0.1248,4002.6,4002.5,2.49843847]
[1758807059890,0.39195335,4002.8,4002.7,2.49831363]
[1758807060109,13.893004,4002.8,4002.7,2.49831363]
[1758807060290,0.39187311,4003.3,4002.8,2.49825122]
[1758807060600,7.00987311,4003.3,4003.2,2.49800159]
[1758807060791,7.00987311,4003.3,4003.2,3.00429015]
[1758807060987,6.618,4003.3,4003.1,0.792]
[1758807061217,6.618,4003.3,4003.2,3.2e-07]
[1758807061504,15.251785,4003.3,4003.2,3.2e-07]
[1758807061711,13.509692,4003.3,4003.2,3.2e-07]
[1758807062010,14.69338056,4003.3,4003.2,3.2e-07]
[1758807062300,4.536,4003.3,4003.2,3.2e-07]
[1758807062501,0.39183895,4003.3,4003.2,3.2e-07]
[1758807062698,0.39183895,4003.3,4003.2,2.49800191]
[1758807062699,7.00983895,4003.3,4003.2,2.49800191]
[1758807063003,11.52500895,4003.3,4003.2,3.2e-07]
[1758807063203,14.52500895,4003.3,4003.2,3.2e-07]
[1758807063372,7.51517,4003.3,4003.2,3.2e-07]